fUSD/lending_fUSD_20250107
["ID","MTS","AMOUNT","RATE_DAILY","PERIOD"]
[348019890,1736268638537,-500.0,8.772e-05,2]
[348019892,1736268638546,-500.0,8.772e-05,2]
[348019893,1736268638556,-553.12,8.772e-05,2]
[348019894,1736268638567,-500.0,8.772e-05,2]
[348019895,1736268638576,-863.2,8.772e-05,2]
[348019896,1736268638585,-500.0,8.772e-05,2]
[348019897,1736268638595,-500.0,8.772e-05,2]
[348019898,1736268638607,-500.0,8.772e-05,2]
[348019899,1736268638617,-531.05,8.772e-05,2]
[348019900,1736268638627,-500.0,8.772e-05,2]
[348019901,1736268638636,-500.0,8.772e-05,2]
[348019902,1736268638646,-500.0,8.772e-05,2]
[348019903,1736268638655,-500.0,8.772e-05,2]
[348019904,1736268638665,-500.0,8.772e-05,2]
[348019905,1736268638674,-500.0,8.772e-05,2]
[348019906,1736268638684,-500.0,8.772e-05,2]
[348019907,1736268638693,-500.0,8.772e-05,2]
[348019908,1736268638703,-773.27,8.772e-05,2]
[348019909,1736268638712,-500.0,8.772e-05,2]
[348019910,1736268638722,-500.0,8.772e-05,2]
[348019911,1736268638731,-831.05,8.772e-05,2]
[348019912,1736268638744,-500.0,8.772e-05,2]
[348019913,1736268638754,-500.0,8.772e-05,2]
[348019914,1736268638764,-500.0,8.772e-05,2]
[348019915,1736268638774,-2392.33,8.772e-05,2]
[348019916,1736268638783,-500.0,8.772e-05,2]
[348019917,1736268638792,-500.0,8.772e-05,2]
[348019918,1736268638802,-500.0,8.772e-05,2]
[348019919,1736268638811,-912.02,8.772e-05,2]
[348019920,1736268638820,-500.0,8.772e-05,2]
[348019921,1736268638829,-514.77,8.772e-05,2]
[348019922,1736268638838,-500.0,8.772e-05,2]
[348019923,1736268638847,-500.0,8.772e-05,2]
[348019924,1736268638856,-1029.27,8.772e-05,2]
[348019925,1736268638865,-500.0,8.772e-05,2]
[348019926,1736268638875,-563.25365256,8.772e-05,2]
[348019927,1736268638884,-500.0,8.772e-05,2]
[348019928,1736268638893,-2127.93,8.772e-05,2]
[348019929,1736268638902,-1494.48,8.772e-05,2]
[348019930,1736268638911,-500.0,8.772e-05,2]
[348019931,1736268638920,-500.0,8.772e-05,2]
[348019932,1736268638929,-500.0,8.772e-05,2]
[348019933,1736268638941,-858.75,8.772e-05,2]
[348019934,1736268638950,-500.0,8.772e-05,2]
[348019935,1736268638959,-500.0,8.772e-05,2]
[348019936,1736268638969,-500.0,8.772e-05,2]
[348019937,1736268638978,-500.0,8.772e-05,2]
[348019938,1736268638988,-500.0,8.772e-05,2]
[348019939,1736268638996,-500.0,8.772e-05,2]
[348019940,1736268639005,-500.0,8.772e-05,2]
[348019941,1736268639015,-500.0,8.772e-05,2]
[348019942,1736268639024,-2342.11,8.772e-05,2]
[348019943,1736268639033,-500.0,8.772e-05,2]
[348019944,1736268639042,-500.0,8.772e-05,2]
[348019945,1736268639051,-500.0,8.772e-05,2]
[348019946,1736268639059,-539.24,8.772e-05,2]
[348019947,1736268639068,-500.0,8.772e-05,2]
[348019948,1736268639077,-553.28,8.772e-05,2]
[348019949,1736268639087,-500.0,8.772e-05,2]
[348019950,1736268639096,-609.78,8.772e-05,2]
[348019951,1736268639105,-500.0,8.772e-05,2]
[348019952,1736268639114,-290.63764367,8.772e-05,2]
[348019953,1736268639123,-500.0,8.772e-05,2]
[348019954,1736268639132,-393.11159803,8.772e-05,2]
[348019955,1736268639142,-578.35,8.772e-05,2]
[348019956,1736268639151,-500.0,8.772e-05,2]
[348019957,1736268639160,-512.91,8.772e-05,2]
[348019958,1736268639169,-500.0,8.772e-05,2]
[348019959,1736268639178,-1333.64,8.772e-05,2]
[348019960,1736268639187,-508.71,8.772e-05,2]
[348019961,1736268639197,-417.30515528,8.772e-05,2]
[348019962,1736268639206,-502.02292164,8.772e-05,2]
[348019963,1736268639216,-2822.03,8.772e-05,2]
[348019964,1736268639225,-500.0,8.772e-05,2]
[348019965,1736268639234,-618.22,8.772e-05,2]
[348019966,1736268639243,-500.0,8.772e-05,2]
[348019967,1736268639253,-500.0,8.772e-05,2]
[348019968,1736268639262,-500.0,8.772e-05,2]
[348019969,1736268639271,-500.0,8.772e-05,2]
[348019970,1736268639281,-602.54,8.772e-05,2]
[348019971,1736268639290,-500.0,8.772e-05,2]
[348019972,1736268639299,-1190.44,8.772e-05,2]
[348019973,1736268639308,-793.26,8.772e-05,2]
[348019974,1736268639317,-500.0,8.772e-05,2]
[348019975,1736268639326,-1546.56,8.772e-05,2]
[348019976,1736268639336,-722.34,8.772e-05,2]
[348019977,1736268639345,-1887.44,8.772e-05,2]
[348019978,1736268639354,-500.0,8.772e-05,2]
[348019979,1736268639363,-1149.51,8.772e-05,2]
[348019980,1736268639373,-516.37161911,8.772e-05,2]
[348019981,1736268639382,-500.0,8.772e-05,2]
[348019982,1736268639391,-500.0,8.772e-05,2]
[348019983,1736268639401,-865.45,8.772e-05,2]
[348019984,1736268639410,-500.0,8.772e-05,2]
[348019985,1736268639420,-500.0,8.772e-05,2]
[348019986,1736268639429,-807.88,8.772e-05,2]
[348019987,1736268639439,-500.0,8.772e-05,2]
[348019988,1736268639448,-910.92,8.772e-05,2]
[348019989,1736268639458,-500.0,8.772e-05,2]
[348019990,1736268639468,-500.0,8.772e-05,2]
[348019991,1736268639477,-500.0,8.772e-05,2]
[348019992,1736268639487,-500.0,8.772e-05,2]
[348019993,1736268639497,-1777.29,8.772e-05,2]
[348019994,1736268639507,-500.0,8.772e-05,2]
[348019995,1736268639518,-500.0,8.772e-05,2]
[348019996,1736268639528,-757.84,8.772e-05,2]
[348019997,1736268639538,-500.0,8.772e-05,2]
[348019998,1736268639548,-5860.4,8.772e-05,2]
[348019999,1736268639558,-500.0,8.772e-05,2]
[348020000,1736268639569,-500.0,8.772e-05,2]
[348020001,1736268639579,-1001.12,8.772e-05,2]
[348020002,1736268639588,-218.463418,8.772e-05,2]
[348020003,1736268639598,-500.0,8.772e-05,2]
[348020004,1736268639611,-2561.02,8.772e-05,2]
[348020005,1736268639622,-500.0,8.772e-05,2]
[348020006,1736268639631,-1084.58,8.772e-05,2]
[348020007,1736268639641,-4263.82,8.772e-05,2]
[348020008,1736268639651,-500.0,8.772e-05,2]
[348020009,1736268639660,-500.0,8.772e-05,2]
[348020010,1736268639670,-1460.17,8.772e-05,2]
[348020011,1736268639680,-502.13915873,8.772e-05,2]
[348020012,1736268639689,-500.0,8.772e-05,2]
[348020013,1736268639699,-233.574732,8.772e-05,2]
[348020014,1736268639709,-1616.76,8.772e-05,2]
[348020015,1736268639719,-500.0,8.772e-05,2]
[348020016,1736268639730,-2923.63,8.772e-05,2]
[348020017,1736268639740,-500.0,8.772e-05,2]
[348020018,1736268639750,-1003.09,8.772e-05,2]
[348020019,1736268639761,-500.0,8.772e-05,2]
[348020020,1736268639771,-942.56,8.772e-05,2]
[348020021,1736268639781,-500.0,8.772e-05,2]
[348020022,1736268639792,-4374.14,8.772e-05,2]
[348020023,1736268639802,-4714.17,8.772e-05,2]
[348020024,1736268639813,-592.62,8.772e-05,2]
[348020025,1736268639822,-500.0,8.772e-05,2]
[348020026,1736268639831,-2206.35,8.772e-05,2]
[348020027,1736268639840,-1217.32,8.772e-05,2]
[348020028,1736268639850,-500.0,8.772e-05,2]
[348020029,1736268639859,-500.0,8.772e-05,2]
[348020030,1736268639868,-779.65,8.772e-05,2]
[348020031,1736268639878,-544.8,8.772e-05,2]
[348020032,1736268639887,-2901.84,8.772e-05,2]
[348020033,1736268639897,-794.55,8.772e-05,2]
[348020034,1736268639906,-884.2,8.772e-05,2]
[348020035,1736268639915,-2312.21,8.772e-05,2]
[348020036,1736268639925,-500.0,8.772e-05,2]
[348020037,1736268639934,-500.0,8.772e-05,2]
[348020038,1736268639943,-1059.63,8.772e-05,2]
[348020039,1736268639952,-604.36,8.772e-05,2]
[348020040,1736268639962,-500.0,8.772e-05,2]
[348020041,1736268639972,-779.93,8.772e-05,2]
[348020042,1736268639982,-500.0,8.772e-05,2]
[348020043,1736268639991,-500.0,8.772e-05,2]
[348020044,1736268640001,-500.0,8.772e-05,2]
[348020045,1736268640010,-559.47,8.772e-05,2]
[348020046,1736268640020,-1870.96,8.772e-05,2]
[348020047,1736268640031,-782.74,8.772e-05,2]
[348020048,1736268640040,-1083.61,8.772e-05,2]
[348020049,1736268640049,-500.0,8.772e-05,2]
[348020050,1736268640058,-595.86,8.772e-05,2]
[348020051,1736268640067,-500.0,8.772e-05,2]
[348020052,1736268640077,-500.0,8.772e-05,2]
[348020053,1736268640086,-818.1,8.772e-05,2]
[348020054,1736268640095,-500.0,8.772e-05,2]
[348020055,1736268640104,-715.2,8.772e-05,2]
[348020056,1736268640113,-1115.91,8.772e-05,2]
[348020057,1736268640122,-500.0,8.772e-05,2]
[348020058,1736268640131,-500.0,8.772e-05,2]
[348020059,1736268640141,-500.0,8.772e-05,2]
[348020060,1736268640150,-500.0,8.773e-05,2]
[348020061,1736268640159,-500.0,8.773e-05,2]
[348020062,1736268640169,-500.0,8.773e-05,2]
[348020063,1736268640178,-500.0,8.773e-05,2]
[348020064,1736268640187,-500.0,8.773e-05,2]
[348020065,1736268640197,-500.0,8.773e-05,2]
[348020066,1736268640206,-500.0,8.773e-05,2]
[348020067,1736268640215,-500.0,8.773e-05,2]
[348020068,1736268640225,-500.0,8.773e-05,2]
[348020069,1736268640234,-500.0,8.773e-05,2]
[348020070,1736268640243,-500.0,8.773e-05,2]
[348020071,1736268640252,-500.0,8.773e-05,2]
[348020072,1736268640261,-500.0,8.773e-05,2]
[348020073,1736268640270,-533.91,8.773e-05,2]
[348020074,1736268640280,-500.0,8.773e-05,2]
[348020075,1736268640289,-500.0,8.773e-05,2]
[348020076,1736268640299,-500.0,8.773e-05,2]
[348020077,1736268640308,-500.0,8.773e-05,2]
[348020078,1736268640318,-500.0,8.773e-05,2]
[348020079,1736268640327,-500.0,8.773e-05,2]
[348020080,1736268640336,-500.0,8.773e-05,2]
[348020081,1736268640346,-500.0,8.773e-05,2]
[348020082,1736268640355,-156.71267619,8.773e-05,2]
[348020083,1736268640365,-500.0,8.773e-05,2]
[348020084,1736268640374,-500.0,8.773e-05,2]
[348020085,1736268640383,-500.0,8.773e-05,2]
[348020086,1736268640392,-500.0,8.773e-05,2]
[348020087,1736268640402,-500.0,8.773e-05,2]
[348020088,1736268640411,-500.0,8.773e-05,2]
[348020089,1736268640420,-500.0,8.773e-05,2]
[348020090,1736268640430,-500.0,8.773e-05,2]
[348020091,1736268640439,-538.96,8.773e-05,2]
[348020092,1736268640448,-500.0,8.773e-05,2]
[348020093,1736268640457,-500.0,8.773e-05,2]
[348020094,1736268640468,-500.0,8.773e-05,2]
[348020095,1736268640478,-500.0,8.773e-05,2]
[348020096,1736268640488,-500.0,8.773e-05,2]
[348020097,1736268640498,-500.0,8.773e-05,2]
[348020098,1736268640507,-500.0,8.773e-05,2]
[348020099,1736268640517,-500.0,8.773e-05,2]
[348020100,1736268640527,-500.0,8.773e-05,2]
[348020101,1736268640538,-845.74,8.773e-05,2]
[348020102,1736268640547,-500.0,8.773e-05,2]
[348020103,1736268640556,-500.0,8.773e-05,2]
[348020104,1736268640567,-500.0,8.773e-05,2]
[348020105,1736268640577,-500.0,8.773e-05,2]
[348020106,1736268640586,-500.0,8.773e-05,2]
[348020107,1736268640595,-500.0,8.773e-05,2]
[348020108,1736268640606,-592.86,8.773e-05,2]
[348020109,1736268640616,-500.0,8.773e-05,2]
[348020110,1736268640625,-600.81,8.773e-05,2]
[348020111,1736268640634,-500.0,8.773e-05,2]
[348020112,1736268640644,-500.0,8.773e-05,2]
[348020113,1736268640654,-519.72,8.773e-05,2]
[348020114,1736268640664,-500.0,8.773e-05,2]
[348020115,1736268640674,-819.07,8.773e-05,2]
[348020116,1736268640683,-500.0,8.773e-05,2]
[348020117,1736268640694,-500.0,8.773e-05,2]
[348020118,1736268640704,-500.0,8.773e-05,2]
[348020119,1736268640715,-518.34,8.773e-05,2]
[348020120,1736268640725,-500.0,8.773e-05,2]
[348020121,1736268640735,-616.88,8.773e-05,2]
[348020122,1736268640746,-500.0,8.773e-05,2]
[348020123,1736268640757,-500.0,8.773e-05,2]
[348020124,1736268640767,-500.0,8.773e-05,2]
[348020125,1736268640777,-500.0,8.773e-05,2]
[348020126,1736268640788,-500.0,8.773e-05,2]
[348020127,1736268640798,-400.76,8.773e-05,2]
[348020128,1736268640808,-500.0,8.773e-05,2]
[348020129,1736268640817,-500.0,8.773e-05,2]
[348020130,1736268640827,-500.0,8.773e-05,2]
[348020131,1736268640837,-500.0,8.773e-05,2]
[348020132,1736268640847,-500.0,8.773e-05,2]
[348020133,1736268640857,-500.0,8.773e-05,2]
[348020134,1736268640866,-500.0,8.773e-05,2]
[348020135,1736268640876,-537.76,8.773e-05,2]
[348020136,1736268640886,-500.0,8.773e-05,2]
[348020137,1736268640896,-500.0,8.773e-05,2]
[348020138,1736268640905,-500.0,8.773e-05,2]
[348020139,1736268640915,-500.0,8.773e-05,2]
[348020140,1736268640925,-500.0,8.773e-05,2]
[348020141,1736268640937,-870.58,8.773e-05,2]
[348020142,1736268640947,-687.56,8.773e-05,2]
[348020143,1736268640957,-500.0,8.773e-05,2]
[348020144,1736268640968,-791.82,8.773e-05,2]
[348020145,1736268640977,-500.0,8.773e-05,2]
[348020146,1736268640988,-500.0,8.773e-05,2]
[348020147,1736268640998,-500.0,8.773e-05,2]
[348020148,1736268641008,-500.0,8.773e-05,2]
[348020149,1736268641018,-500.0,8.773e-05,2]
[348020150,1736268641028,-500.0,8.773e-05,2]
[348020151,1736268641038,-500.0,8.773e-05,2]
[348020152,1736268641047,-927.26,8.773e-05,2]
[348020153,1736268641058,-558.34,8.773e-05,2]
[348020154,1736268641067,-500.0,8.773e-05,2]
[348020155,1736268641077,-500.0,8.773e-05,2]
[348020156,1736268641087,-528.18216296,8.773e-05,2]
[348020157,1736268641097,-500.0,8.773e-05,2]
[348020158,1736268641107,-655.3,8.773e-05,2]
[348020159,1736268641117,-557.31,8.773e-05,2]
[348020160,1736268641127,-656.36,8.773e-05,2]
[348020161,1736268641138,-500.0,8.773e-05,2]
[348020162,1736268641147,-918.28,8.773e-05,2]
[348020163,1736268641157,-582.18,8.773e-05,2]
[348020164,1736268641167,-500.0,8.773e-05,2]
[348020165,1736268641177,-685.99,8.773e-05,2]
[348020166,1736268641187,-500.0,8.773e-05,2]
[348020167,1736268641197,-500.0,8.773e-05,2]
[348020168,1736268641207,-500.0,8.773e-05,2]
[348020169,1736268641217,-583.44,8.773e-05,2]
[348020170,1736268641227,-500.0,8.773e-05,2]
[348020171,1736268641237,-641.46,8.773e-05,2]
[348020172,1736268641247,-612.42,8.773e-05,2]
[348020173,1736268641257,-500.0,8.773e-05,2]
[348020174,1736268641266,-520.7,8.773e-05,2]
[348020175,1736268641277,-500.0,8.773e-05,2]
[348020176,1736268641287,-500.0,8.773e-05,2]
[348020177,1736268641297,-500.0,8.773e-05,2]
[348020178,1736268641307,-500.0,8.773e-05,2]
[348020179,1736268641317,-505.14,8.773e-05,2]
[348020180,1736268641327,-500.0,8.773e-05,2]
[348020181,1736268641337,-500.0,8.773e-05,2]
[348020182,1736268641347,-500.0,8.773e-05,2]
[348020183,1736268641357,-735.13,8.773e-05,2]
[348020184,1736268641368,-500.0,8.773e-05,2]
[348020185,1736268641378,-512.9,8.773e-05,2]
[348020186,1736268641388,-500.0,8.773e-05,2]
[348020187,1736268641398,-500.0,8.773e-05,2]
[348020188,1736268641408,-500.0,8.773e-05,2]
[348020189,1736268641417,-500.0,8.773e-05,2]
[348020190,1736268641427,-500.0,8.773e-05,2]
[348020191,1736268641437,-500.0,8.773e-05,2]
[348020192,1736268641448,-500.0,8.773e-05,2]
[348020193,1736268641458,-597.15,8.773e-05,2]
[348020194,1736268641468,-174.94089129,8.773e-05,2]
[348020195,1736268641478,-921.38,8.773e-05,2]
[348020196,1736268641489,-500.0,8.773e-05,2]
[348020197,1736268641499,-500.0,8.773e-05,2]
[348020198,1736268641509,-500.0,8.773e-05,2]
[348020199,1736268641520,-500.0,8.773e-05,2]
[348020200,1736268641533,-851.41,8.773e-05,2]
[348020201,1736268641543,-550.58170074,8.773e-05,2]
[348020202,1736268641553,-500.0,8.773e-05,2]
[348020203,1736268641563,-500.0,8.773e-05,2]
[348020204,1736268641573,-500.0,8.773e-05,2]
[348020205,1736268641582,-500.0,8.773e-05,2]
[348020206,1736268641593,-500.0,8.773e-05,2]
[348020207,1736268641602,-500.0,8.773e-05,2]
[348020208,1736268641615,-542.96,8.773e-05,2]
[348020209,1736268641625,-500.0,8.773e-05,2]
[348020210,1736268641635,-500.0,8.773e-05,2]
[348020211,1736268641646,-500.0,8.773e-05,2]
[348020212,1736268641656,-500.0,8.773e-05,2]
[348020213,1736268641666,-500.0,8.773e-05,2]
[348020214,1736268641675,-359.61,8.773e-05,2]
[348020215,1736268641685,-500.0,8.773e-05,2]
[348020216,1736268641695,-500.0,8.773e-05,2]
[348020217,1736268641706,-500.0,8.773e-05,2]
[348020218,1736268641716,-500.0,8.773e-05,2]
[348020219,1736268641726,-538.02,8.773e-05,2]
[348020220,1736268641737,-526.88,8.773e-05,2]
[348020221,1736268641747,-969.14,8.773e-05,2]
[348020222,1736268641757,-500.0,8.773e-05,2]
[348020223,1736268641768,-500.0,8.773e-05,2]
[348020224,1736268641778,-503.34386798,8.773e-05,2]
[348020225,1736268641788,-850.4,8.773e-05,2]
[348020226,1736268641798,-500.0,8.773e-05,2]
[348020227,1736268641808,-500.0,8.773e-05,2]
[348020228,1736268641818,-500.0,8.773e-05,2]
[348020229,1736268641828,-500.0,8.773e-05,2]
[348020230,1736268641837,-1025.87,8.773e-05,2]
[348020231,1736268641847,-877.47,8.773e-05,2]
[348020232,1736268641857,-500.0,8.773e-05,2]
[348020233,1736268641867,-500.0,8.773e-05,2]
[348020234,1736268641876,-500.0,8.773e-05,2]
[348020235,1736268641886,-615.53,8.773e-05,2]
[348020236,1736268641896,-500.0,8.773e-05,2]
[348020237,1736268641905,-500.0,8.773e-05,2]
[348020238,1736268641915,-500.0,8.773e-05,2]
[348020239,1736268641925,-500.0,8.773e-05,2]
[348020240,1736268641935,-590.64,8.773e-05,2]
[348020241,1736268641945,-500.0,8.773e-05,2]
[348020242,1736268641955,-500.0,8.773e-05,2]
[348020243,1736268641964,-585.59,8.773e-05,2]
[348020244,1736268641975,-500.0,8.773e-05,2]
[348020245,1736268641984,-500.0,8.773e-05,2]
[348020246,1736268641995,-500.0,8.773e-05,2]
[348020247,1736268642004,-646.69,8.773e-05,2]
[348020248,1736268642013,-500.0,8.773e-05,2]
[348020249,1736268642022,-500.0,8.773e-05,2]
[348020250,1736268642031,-615.39,8.848e-05,2]
[348020251,1736268642041,-376.82375432,8.879e-05,2]
[348020252,1736268642051,-1700.0,8.9e-05,3]
[348020253,1736268642060,-84981.6075,8.947e-05,2]
[348020254,1736268642071,-3400.0,9e-05,3]
[348020255,1736268642081,-1321.84,9.045e-05,2]
[348020256,1736268642092,-500.0,9.045e-05,2]
[348020257,1736268642102,-817.02,9.045e-05,2]
[348020258,1736268642112,-500.0,9.046e-05,2]
[348020259,1736268642122,-556.07,9.046e-05,2]
[348020260,1736268642132,-850.62,9.046e-05,2]
[348020261,1736268642142,-632.0,9.046e-05,2]
[348020262,1736268642151,-500.0,9.046e-05,2]
[348020263,1736268642162,-500.0,9.046e-05,2]
[348020264,1736268642172,-500.0,9.046e-05,2]
[348020265,1736268642182,-500.0,9.046e-05,2]
[348020266,1736268642192,-590.0,9.046e-05,2]
[348020267,1736268642202,-500.0,9.046e-05,2]
[348020268,1736268642213,-500.0,9.046e-05,2]
[348020269,1736268642224,-733.92,9.046e-05,2]
[348020270,1736268642234,-836.91,9.046e-05,2]
[348020271,1736268642244,-722.53,9.046e-05,2]
[348020272,1736268642254,-500.0,9.046e-05,2]
[348020273,1736268642264,-897.94,9.046e-05,2]
[348020274,1736268642275,-500.0,9.046e-05,2]
[348020275,1736268642285,-500.0,9.046e-05,2]
[348020276,1736268642296,-500.0,9.046e-05,2]
[348020277,1736268642306,-500.0,9.046e-05,2]
[348020279,1736268642317,-500.0,9.046e-05,2]
[348020281,1736268642327,-554.84,9.046e-05,2]
[348020282,1736268642337,-598.75,9.046e-05,2]
[348020283,1736268642347,-500.0,9.046e-05,2]
[348020284,1736268642357,-500.0,9.046e-05,2]
[348020285,1736268642368,-500.0,9.046e-05,2]
[348020286,1736268642378,-500.0,9.046e-05,2]
[348020287,1736268642388,-500.0,9.046e-05,2]
[348020288,1736268642398,-500.0,9.046e-05,2]
[348020289,1736268642408,-500.0,9.046e-05,2]
[348020290,1736268642418,-797.59,9.046e-05,2]
[348020292,1736268642428,-593.4,9.046e-05,2]
[348020294,1736268642438,-500.0,9.046e-05,2]
[348020296,1736268642447,-500.0,9.046e-05,2]
[348020297,1736268642458,-500.0,9.046e-05,2]
[348020298,1736268642468,-402.82013189,9.046e-05,2]
[348020299,1736268642478,-910.72,9.046e-05,2]
[348020301,1736268642488,-519.37,9.046e-05,2]
[348020303,1736268642498,-500.0,9.046e-05,2]
[348020305,1736268642508,-500.0,9.046e-05,2]
[348020307,1736268642519,-812.74,9.046e-05,2]
[348020310,1736268642531,-500.0,9.046e-05,2]
[348020311,1736268642542,-594.22079597,9.046e-05,2]
[348020313,1736268642553,-500.0,9.046e-05,2]
[348020315,1736268642564,-500.0,9.046e-05,2]
[348020317,1736268642576,-500.0,9.046e-05,2]
[348020319,1736268642586,-500.0,9.046e-05,2]
[348020322,1736268642597,-500.0,9.046e-05,2]
[348020325,1736268642608,-531.28,9.046e-05,2]
[348020327,1736268642619,-500.0,9.046e-05,2]
[348020329,1736268642629,-528.34,9.046e-05,2]
[348020331,1736268642640,-1325.98,9.046e-05,2]
[348020333,1736268642650,-826.1,9.046e-05,2]
[348020335,1736268642660,-500.0,9.046e-05,2]
[348020337,1736268642670,-500.0,9.046e-05,2]
[348020339,1736268642680,-582.94,9.046e-05,2]
[348020341,1736268642690,-960.33,9.046e-05,2]
[348020344,1736268642701,-749.9,9.046e-05,2]
[348020346,1736268642711,-500.0,9.046e-05,2]
[348020348,1736268642724,-450.35720549,9.046e-05,2]
[348020350,1736268642735,-824.34,9.046e-05,2]
[348020352,1736268642747,-180.40466388,9.046e-05,2]
[348020354,1736268642760,-500.0,9.046e-05,2]
[348020355,1736268642772,-1090.09,9.046e-05,2]
[348020356,1736268642784,-557.29,9.046e-05,2]
[348020357,1736268642796,-663.62,9.046e-05,2]
[348020358,1736268642807,-557.55,9.046e-05,2]
[348020359,1736268642818,-500.0,9.046e-05,2]
[348020360,1736268642830,-500.0,9.046e-05,2]
[348020361,1736268642841,-500.0,9.046e-05,2]
[348020362,1736268642852,-1547.89,9.046e-05,2]
[348020363,1736268642862,-500.0,9.046e-05,2]
[348020364,1736268642873,-913.99,9.046e-05,2]
[348020365,1736268642884,-500.0,9.046e-05,2]
[348020366,1736268642895,-500.0,9.046e-05,2]
[348020367,1736268642905,-500.0,9.046e-05,2]
[348020368,1736268642915,-500.0,9.046e-05,2]
[348020369,1736268642927,-500.0,9.046e-05,2]
[348020370,1736268642938,-582.8,9.046e-05,2]
[348020371,1736268642949,-500.0,9.046e-05,2]
[348020372,1736268642960,-500.0,9.046e-05,2]
[348020373,1736268642976,-500.0,9.046e-05,2]
[348020374,1736268642987,-531.81238506,9.046e-05,2]
[348020398,1736268643227,-503.47422812,9.046e-05,2]
[348020400,1736268643237,-735.69,9.046e-05,2]
[348020401,1736268643247,-500.0,9.046e-05,2]
[348020402,1736268643258,-548.74,9.046e-05,2]
[348020403,1736268643268,-567.82,9.046e-05,2]
[348020404,1736268643279,-500.0,9.046e-05,2]
[348020405,1736268643290,-504.1,9.046e-05,2]
[348020406,1736268643300,-500.0,9.046e-05,2]
[348020407,1736268643310,-500.0,9.046e-05,2]
[348020408,1736268643319,-500.0,9.046e-05,2]
[348020409,1736268643329,-500.0,9.046e-05,2]
[348020410,1736268643339,-609.14,9.046e-05,2]
[348020411,1736268643349,-853.91,9.046e-05,2]
[348020412,1736268643359,-500.0,9.046e-05,2]
[348020414,1736268643370,-500.0,9.046e-05,2]
[348020416,1736268643379,-1921.49,9.046e-05,2]
[348020419,1736268643389,-1230.46,9.046e-05,2]
[348020421,1736268643399,-500.0,9.046e-05,2]
[348020422,1736268643416,-553.12,9.046e-05,2]
[348020424,1736268643426,-863.2,9.046e-05,2]
[348020426,1736268643436,-531.05,9.046e-05,2]
[348020428,1736268643446,-500.0,9.046e-05,2]
[348020430,1736268643455,-500.0,9.046e-05,2]
[348020432,1736268643465,-500.0,9.046e-05,2]
[348020434,1736268643480,-500.0,9.046e-05,2]
[348020436,1736268643490,-773.27,9.046e-05,2]
[348020438,1736268643500,-500.0,9.046e-05,2]
[348020440,1736268643510,-831.05,9.046e-05,2]
[348020442,1736268643520,-500.0,9.046e-05,2]
[348020445,1736268643533,-500.0,9.046e-05,2]
[348020447,1736268643542,-2392.33,9.046e-05,2]
[348020449,1736268643552,-514.77,9.046e-05,2]
[348020451,1736268643563,-912.02,9.046e-05,2]
[348020452,1736268643574,-1029.27,9.046e-05,2]
[348020455,1736268643584,-2127.93,9.046e-05,2]
[348020457,1736268643595,-1494.48,9.046e-05,2]
[348020459,1736268643605,-500.0,9.046e-05,2]
[348020461,1736268643616,-500.0,9.046e-05,2]
[348020462,1736268643625,-1004.88,9.046e-05,2]
[348020465,1736268643635,-858.75,9.046e-05,2]
[348020467,1736268643645,-1358.1,9.046e-05,2]
[348020469,1736268643655,-2342.11,9.046e-05,2]
[348020471,1736268643664,-539.24,9.046e-05,2]
[348020472,1736268643674,-609.78,9.046e-05,2]
[348020474,1736268643684,-1333.64,9.046e-05,2]
[348020477,1736268643694,-2822.03,9.046e-05,2]
[348020479,1736268643704,-500.0,9.046e-05,2]
[348020481,1736268643714,-602.54,9.046e-05,2]
[348020483,1736268643725,-1051.54,9.046e-05,2]
[348020485,1736268643735,-500.0,9.046e-05,2]